fUSD/lending_fUSD_20251225
["ID","MTS","AMOUNT","RATE_DAILY","PERIOD"]
[399712811,1766631143967,-500.0,0.0003726,11]
[399712812,1766631143985,-14053.25,0.0003726,5]
[399712813,1766631144003,-804.57,0.0003726,2]
[399712814,1766631144021,-500.0,0.0003726,11]
[399712815,1766631144038,-656.28,0.0003726,11]
[399712816,1766631144056,-1327.0,0.00037263,2]
[399712817,1766631144074,-1610.0,0.00037263,2]
[399712818,1766631144391,-612.0,0.00037263,2]
[399712819,1766631144423,-3459.0,0.00037263,2]
[399712820,1766631144433,-1263.0,0.00037263,2]
[399712821,1766631144445,-432.0,0.00037263,2]
[399712822,1766631144454,-1198.0,0.00037263,2]
[399712823,1766631144464,-912.0,0.00037263,2]
[399712824,1766631144474,-4807.0,0.00037263,2]
[399712825,1766631144483,-6534.0,0.00037263,2]
[399712826,1766631144493,-473.0,0.00037298,2]
[399712827,1766631144502,-1000.0,0.00037325,7]
[399712828,1766631144511,-150.0,0.0003737,2]
[399712829,1766631144521,-5234.0,0.00037371,2]
[399712830,1766631144531,-3178.258,0.00037372,48]
[399712831,1766631144540,-206.829,0.00037372,48]
[399712832,1766631144550,-6094.52,0.000374,2]
[399712833,1766631144560,-1011.82883581,0.00037434,7]
[399712834,1766631144570,-298.75,0.00037456,2]
[399712835,1766631144580,-300.0,0.00037519,2]
[399712836,1766631144590,-484.65921405,0.00037534,11]
[399712837,1766631144599,-714.65,0.00037534,7]
[399712838,1766631144609,-500.0,0.00037534,11]
[399712839,1766631144618,-1367.09,0.00037534,11]
[399712840,1766631144627,-1354.83,0.00037534,2]
[399712841,1766631144637,-641.85,0.00037534,10]
[399712842,1766631144646,-500.0,0.00037534,11]
[399712843,1766631144656,-505.07,0.00037534,2]
[399712844,1766631144666,-500.0,0.00037534,11]
[399712845,1766631144676,-364.30785373,0.00037534,11]
[399712846,1766631144686,-573.17,0.00037534,11]
[399712847,1766631144695,-500.0,0.00037534,11]
[399712848,1766631144705,-500.0,0.00037534,11]
[399712849,1766631144715,-500.0,0.00037534,11]
[399712850,1766631144725,-500.0,0.00037534,11]
[399712851,1766631144734,-500.0,0.00037534,11]
[399712852,1766631144743,-500.0,0.00037534,11]
[399712853,1766631144753,-3742.25,0.00037534,11]
[399712854,1766631144763,-500.0,0.00037534,11]
[399712855,1766631144773,-639.08,0.00037534,11]
[399712856,1766631144782,-500.0,0.00037534,11]
[399712857,1766631144792,-500.0,0.00037534,11]
[399712858,1766631144802,-566.13,0.00037534,11]
[399712859,1766631144811,-509.97,0.00037534,11]
[399712860,1766631144821,-500.0,0.00037534,11]
[399712861,1766631144830,-876.11,0.00037534,11]
[399712862,1766631144840,-500.0,0.00037534,11]
[399712863,1766631144850,-276.49075915,0.00037534,11]
[399712864,1766631144859,-500.0,0.00037534,11]
[399712865,1766631144869,-536.03,0.00037534,11]
[399712866,1766631144879,-632.57,0.00037534,11]
[399712867,1766631144889,-500.0,0.00037534,11]
[399712868,1766631144899,-998.82,0.00037534,11]
[399712869,1766631144909,-500.0,0.00037534,11]
[399712870,1766631144919,-500.0,0.00037534,11]
[399712871,1766631144927,-500.0,0.00037534,11]
[399712872,1766631144938,-500.0,0.00037534,11]
[399712873,1766631144948,-646.63,0.00037534,11]
[399712874,1766631144958,-500.0,0.00037534,11]
[399712875,1766631144967,-572.07,0.00037534,11]
[399712876,1766631144978,-642.5,0.00037534,11]
[399712877,1766631144988,-574.86,0.00037534,11]
[399712878,1766631144998,-642.68,0.00037534,11]
[399712879,1766631145008,-1734.97,0.00037534,11]
[399712880,1766631145018,-500.0,0.00037534,11]
[399712881,1766631145027,-564.76,0.00037534,11]
[399712882,1766631145037,-521.60993007,0.00037534,11]
[399712883,1766631145046,-500.0,0.00037534,11]
[399712884,1766631145056,-500.0,0.00037534,11]
[399712885,1766631145067,-543.77,0.00037534,11]
[399712886,1766631145077,-500.0,0.00037534,11]
[399712887,1766631145086,-500.0,0.00037534,11]
[399712888,1766631145096,-609.66,0.00037534,11]
[399712889,1766631145105,-500.0,0.00037534,11]
[399712890,1766631145115,-657.18,0.00037534,11]
[399712891,1766631145124,-543.46,0.00037534,11]
[399712892,1766631145133,-500.0,0.00037534,11]
[399712893,1766631145143,-500.0,0.00037534,11]
[399712894,1766631145153,-974.52,0.00037534,11]
[399712895,1766631145163,-597.79,0.00037534,11]
[399712896,1766631145173,-511.3,0.00037534,11]
[399712897,1766631145183,-500.0,0.00037534,11]
[399712898,1766631145192,-500.0,0.00037534,11]
[399712899,1766631145202,-592.68,0.00037534,11]
[399712900,1766631145212,-519.26,0.00037534,11]
[399712901,1766631145222,-352.37,0.00037534,2]
[399712902,1766631145231,-421.39,0.00037534,2]
[399712903,1766631145242,-500.0,0.00037534,11]
[399712904,1766631145256,-506.11061806,0.00037534,11]
[399712905,1766631145275,-500.0,0.00037534,11]
[399712906,1766631145284,-615.10365063,0.00037534,2]
[399712907,1766631145299,-953.97,0.00037534,11]
[399712908,1766631145310,-2740.45,0.00037534,11]
[399712909,1766631145320,-500.0,0.00037534,11]
[399712910,1766631145330,-524.99,0.00037534,11]
[399712911,1766631145340,-500.0,0.00037534,11]
[399712912,1766631145349,-500.0,0.00037534,11]
[399712913,1766631145359,-500.0,0.00037534,11]
[399712914,1766631145368,-705.78,0.00037534,11]
[399712915,1766631145378,-555.98,0.00037534,11]
[399712916,1766631145387,-500.0,0.00037534,11]
[399712917,1766631145398,-737.49,0.00037534,11]
[399712918,1766631145408,-518.13,0.00037534,11]
[399712919,1766631145417,-500.0,0.00037534,11]
[399712920,1766631145427,-580.51,0.00037534,11]
[399712921,1766631145437,-560.48,0.00037534,11]
[399712922,1766631145447,-727.69,0.00037534,11]
[399712923,1766631145456,-500.0,0.00037534,11]
[399712924,1766631145467,-536.36,0.00037534,11]
[399712925,1766631145476,-514.27,0.00037534,11]
[399712926,1766631145486,-295.47601476,0.00037534,11]
[399712927,1766631145495,-500.0,0.00037534,11]
[399712928,1766631145505,-307.237314,0.00037534,11]
[399712929,1766631145515,-500.0,0.00037534,11]
[399712930,1766631145525,-318.10810855,0.00037534,11]
[399712931,1766631145535,-400.18878831,0.00037534,11]
[399712932,1766631145544,-14053.25,0.00037534,5]
[399712933,1766631145553,-804.57,0.00037534,2]
[399712934,1766631145563,-500.0,0.00037534,11]
[399712935,1766631145572,-656.28,0.00037534,11]
[399712936,1766631145582,-1000.0,0.00037547,7]
[399712937,1766631145592,-300.0,0.00037655,2]
[399712938,1766631145601,-1000.0,0.00037661,7]
[399712939,1766631145610,-1000.0,0.00037661,7]
[399712940,1766631145620,-1000.0,0.00037713,7]
[399712941,1766631145630,-1444.0,0.00037753,120]
[399712942,1766631145639,-1000.0,0.00037773,7]
[399712943,1766631145649,-659.5680828,0.00037783,2]
[399712944,1766631145658,-384.6,0.000378,14]
[399712945,1766631145668,-714.65,0.00037808,7]
[399712946,1766631145677,-500.0,0.00037808,11]
[399712947,1766631145687,-1367.09,0.00037808,11]
[399712948,1766631145697,-1354.83,0.00037808,2]
[399712949,1766631145707,-641.85,0.00037808,10]
[399712950,1766631145716,-500.0,0.00037808,11]
[399712951,1766631145725,-505.07,0.00037808,2]
[399712952,1766631145736,-500.0,0.00037808,11]
[399712953,1766631145746,-573.17,0.00037808,11]
[399712954,1766631145755,-500.0,0.00037808,11]
[399712955,1766631145764,-500.0,0.00037808,11]
[399712956,1766631145774,-518.23,0.00037808,11]
[399712957,1766631145784,-500.0,0.00037808,11]
[399712958,1766631145794,-500.0,0.00037808,11]
[399712959,1766631145803,-500.0,0.00037808,11]
[399712960,1766631145813,-3742.25,0.00037808,11]
[399712961,1766631145822,-545.04204894,0.00037808,11]
[399712962,1766631145833,-639.08,0.00037808,11]
[399712963,1766631145843,-500.0,0.00037808,11]
[399712964,1766631145856,-517.4495027,0.00037808,11]
[399712965,1766631145867,-566.13,0.00037808,11]
[399712966,1766631145876,-509.97,0.00037808,11]
[399712967,1766631145887,-500.0,0.00037808,11]
[399712968,1766631145896,-876.11,0.00037808,11]
[399712969,1766631145906,-500.0,0.00037808,11]
[399712970,1766631145916,-350.91535881,0.00037808,11]
[399712971,1766631145926,-536.03,0.00037808,11]
[399712972,1766631145936,-632.57,0.00037808,11]
[399712973,1766631145945,-500.0,0.00037808,11]
[399712974,1766631145955,-998.82,0.00037808,11]
[399712975,1766631145964,-590.22640931,0.00037808,11]
[399712976,1766631145974,-252.24824601,0.00037808,11]
[399712977,1766631145983,-329.68348219,0.00037808,11]
[399712978,1766631145994,-500.0,0.00037808,11]
[399712979,1766631146004,-646.63,0.00037808,11]
[399712980,1766631146014,-500.0,0.00037808,11]
[399712981,1766631146024,-572.07,0.00037808,11]
[399712982,1766631146034,-642.5,0.00037808,11]
[399712983,1766631146043,-574.86,0.00037808,11]
[399712984,1766631146052,-642.68,0.00037808,11]
[399712985,1766631146062,-1734.97,0.00037808,11]
[399712986,1766631146073,-500.0,0.00037808,11]
[399712987,1766631146083,-564.76,0.00037808,11]
[399712988,1766631146093,-500.0,0.00037808,11]
[399712989,1766631146103,-500.0,0.00037808,11]
[399712990,1766631146113,-543.77,0.00037808,11]
[399712991,1766631146123,-320.82712462,0.00037808,11]
[399712992,1766631146133,-500.0,0.00037808,11]
[399712993,1766631146143,-609.66,0.00037808,11]
[399712994,1766631146152,-500.0,0.00037808,11]
[399712995,1766631146162,-657.18,0.00037808,11]
[399712996,1766631146171,-543.46,0.00037808,11]
[399712997,1766631146180,-500.0,0.00037808,11]
[399712998,1766631146191,-500.0,0.00037808,11]
[399712999,1766631146201,-974.52,0.00037808,11]
[399713000,1766631146211,-597.79,0.00037808,11]
[399713001,1766631146221,-511.3,0.00037808,11]
[399713002,1766631146231,-500.0,0.00037808,11]
[399713003,1766631146243,-500.0,0.00037808,11]
[399713004,1766631146254,-592.68,0.00037808,11]
[399713005,1766631146264,-519.26,0.00037808,11]
[399713006,1766631146274,-352.37,0.00037808,2]
[399713007,1766631146285,-421.39,0.00037808,2]
[399713008,1766631146295,-500.0,0.00037808,11]
[399713009,1766631146305,-500.0,0.00037808,11]
[399713010,1766631146314,-953.97,0.00037808,11]
[399713011,1766631146325,-2740.45,0.00037808,11]
[399713012,1766631146336,-500.0,0.00037808,11]
[399713013,1766631146346,-524.99,0.00037808,11]
[399713014,1766631146356,-500.0,0.00037808,11]
[399713015,1766631146367,-500.0,0.00037808,11]
[399713016,1766631146377,-500.0,0.00037808,11]
[399713017,1766631146387,-705.78,0.00037808,11]
[399713018,1766631146397,-555.98,0.00037808,11]
[399713019,1766631146407,-496.6105289,0.00037808,11]
[399713020,1766631146418,-737.49,0.00037808,11]
[399713021,1766631146429,-518.13,0.00037808,11]
[399713022,1766631146438,-571.29218957,0.00037808,11]
[399713023,1766631146449,-580.51,0.00037808,11]
[399713024,1766631146459,-560.48,0.00037808,11]
[399713025,1766631146469,-727.69,0.00037808,11]
[399713026,1766631146479,-500.0,0.00037808,11]
[399713027,1766631146489,-536.36,0.00037808,11]
[399713028,1766631146499,-514.27,0.00037808,11]
[399713029,1766631146510,-500.0,0.00037808,11]
[399713030,1766631146520,-500.0,0.00037808,11]
[399713031,1766631146530,-14053.25,0.00037808,5]
[399713032,1766631146540,-804.57,0.00037808,2]
[399713033,1766631146549,-500.0,0.00037808,11]
[399713034,1766631146559,-656.28,0.00037808,11]
[399713035,1766631146570,-12882.77985092,0.0003783,2]
[399713036,1766631146580,-150.0,0.00037839,7]
[399713037,1766631146590,-1220.11,0.00037863,2]
[399713038,1766631146600,-150.0,0.00037863,2]
[399713039,1766631146610,-150.0,0.00037863,2]
[399713040,1766631146620,-150.0,0.00037863,2]
[399713041,1766631146630,-150.0,0.00037887,7]
[399713042,1766631146640,-370.91026638,0.00037899,2]
[399713043,1766631146650,-431.42848765,0.00037899,2]
[399713044,1766631146660,-166.1,0.000379,14]
[399713045,1766631146670,-668.65185757,0.00037903,2]
[399713046,1766631146680,-473.0,0.0003795,7]
[399713047,1766631146690,-300.0,0.00037963,2]
[399713048,1766631146700,-349.0,0.00038,120]
[399713049,1766631146710,-361.63,0.00038,120]
[399713050,1766631146721,-3088.80399449,0.00038,120]
[399713051,1766631146731,-308.47,0.00038,30]
[399713052,1766631146741,-113644.47,0.00038,14]
[399713053,1766631146751,-500.0,0.00038,30]
[399713054,1766631146761,-502.36757015,0.00038,30]
[399713055,1766631146771,-150.0,0.00038003,7]
[399713056,1766631146781,-1000.0,0.00038029,7]
[399713057,1766631146791,-1000.0,0.00038046,7]
[399713058,1766631146801,-1000.0,0.00038057,7]
[399713059,1766631146810,-1000.0,0.00038073,7]
[399713060,1766631146820,-151.0,0.00038079,14]
[399713061,1766631146830,-714.65,0.00038082,7]
[399713062,1766631146839,-500.0,0.00038082,11]
[399713063,1766631146850,-1367.09,0.00038082,11]
[399713064,1766631146859,-1354.83,0.00038082,2]
[399713065,1766631146869,-641.85,0.00038082,10]
[399713066,1766631146879,-500.0,0.00038082,11]
[399713067,1766631146888,-505.07,0.00038082,2]
[399713068,1766631146899,-500.0,0.00038082,11]
[399713069,1766631146909,-573.17,0.00038082,11]
[399713070,1766631146918,-535.85234712,0.00038082,11]
[399713071,1766631146928,-500.0,0.00038082,11]
[399713072,1766631146939,-500.0,0.00038082,11]
[399713073,1766631146948,-500.0,0.00038082,11]
[399713074,1766631146959,-500.0,0.00038082,11]
[399713075,1766631146968,-3742.25,0.00038082,11]
[399713076,1766631146979,-639.08,0.00038082,11]
[399713077,1766631146989,-512.88990075,0.00038082,11]
[399713078,1766631146999,-566.13,0.00038082,11]
[399713079,1766631147009,-509.97,0.00038082,11]
[399713080,1766631147023,-500.0,0.00038082,11]
[399713081,1766631147042,-876.11,0.00038082,11]
[399713082,1766631147052,-500.0,0.00038082,11]
[399713083,1766631147063,-536.03,0.00038082,11]
[399713084,1766631147073,-632.57,0.00038082,11]
[399713085,1766631147083,-500.0,0.00038082,11]
[399713086,1766631147092,-998.82,0.00038082,11]
[399713087,1766631147103,-415.10726761,0.00038082,11]
[399713088,1766631147113,-646.63,0.00038082,11]
[399713089,1766631147123,-500.0,0.00038082,11]
[399713090,1766631147132,-572.07,0.00038082,11]
[399713091,1766631147143,-642.5,0.00038082,11]
[399713092,1766631147153,-574.86,0.00038082,11]
[399713093,1766631147163,-642.68,0.00038082,11]
[399713094,1766631147172,-1734.97,0.00038082,11]
[399713095,1766631147183,-563.94580401,0.00038082,11]
[399713096,1766631147193,-564.76,0.00038082,11]
[399713097,1766631147203,-500.0,0.00038082,11]
[399713098,1766631147214,-479.35567451,0.00038082,11]
[399713099,1766631147224,-543.77,0.00038082,11]
[399713100,1766631147234,-361.82258791,0.00038082,11]
[399713101,1766631147246,-609.66,0.00038082,11]
[399713102,1766631147256,-500.0,0.00038082,11]
[399713103,1766631147265,-657.18,0.00038082,11]
[399713104,1766631147275,-543.46,0.00038082,11]
[399713105,1766631147284,-412.5406985,0.00038082,11]
[399713106,1766631147295,-500.0,0.00038082,11]
[399713107,1766631147305,-974.52,0.00038082,11]
[399713108,1766631147315,-597.79,0.00038082,11]
[399713109,1766631147326,-511.3,0.00038082,11]
[399713110,1766631147335,-500.0,0.00038082,11]
[399713111,1766631147346,-434.34406722,0.00038082,11]
[399713112,1766631147356,-592.68,0.00038082,11]
[399713113,1766631147367,-519.26,0.00038082,11]
[399713114,1766631147377,-352.37,0.00038082,2]
[399713115,1766631147387,-421.39,0.00038082,2]
[399713116,1766631147399,-500.0,0.00038082,11]
[399713117,1766631147408,-500.0,0.00038082,11]
[399713118,1766631147418,-953.97,0.00038082,11]
[399713119,1766631147429,-2740.45,0.00038082,11]
[399713120,1766631147439,-363.00232241,0.00038082,11]
[399713121,1766631147449,-524.99,0.00038082,11]
[399713122,1766631147459,-526.1883596,0.00038082,11]
[399713123,1766631147468,-246.64325089,0.00038082,11]
[399713124,1766631147478,-500.0,0.00038082,11]
[399713125,1766631147488,-705.78,0.00038082,11]
[399713126,1766631147498,-555.98,0.00038082,11]
[399713127,1766631147507,-737.49,0.00038082,11]
[399713128,1766631147517,-518.13,0.00038082,11]
[399713129,1766631147528,-580.51,0.00038082,11]
[399713130,1766631147538,-560.48,0.00038082,11]
[399713131,1766631147548,-727.69,0.00038082,11]
[399713132,1766631147558,-500.0,0.00038082,11]
[399713133,1766631147567,-536.36,0.00038082,11]
[399713134,1766631147577,-514.27,0.00038082,11]
[399713135,1766631147586,-500.0,0.00038082,11]
[399713136,1766631147597,-500.0,0.00038082,11]
[399713137,1766631147607,-14053.25,0.00038082,5]
[399713138,1766631147617,-804.57,0.00038082,2]
[399713139,1766631147627,-500.0,0.00038082,11]
[399713140,1766631147637,-656.28,0.00038082,11]
[399713141,1766631147648,-1000.0,0.00038091,7]
[399713142,1766631147658,-1000.0,0.000381,7]
[399713143,1766631147923,-1000.0,0.00038121,14]
[399713144,1766631147936,-212.08509414,0.00038131,7]
[399713145,1766631147947,-300.0,0.00038161,2]
[399713146,1766631147957,-1000.0,0.00038186,7]
[399713147,1766631147967,-164.19,0.00038192,2]
[399713148,1766631147977,-6094.52,0.000382,2]
[399713149,1766631147987,-3603.11855064,0.00038223,120]
[399713150,1766631147997,-300.0,0.00038224,2]
[399713151,1766631148007,-473.0,0.00038228,120]
[399713152,1766631148017,-1000.0,0.00038243,7]
[399713153,1766631148027,-1000.0,0.0003829,7]
[399713154,1766631148037,-1000.0,0.00038294,7]
[399713155,1766631148047,-1000.0,0.00038308,7]
[399713156,1766631148057,-1000.0,0.00038349,7]
[399713157,1766631148067,-714.65,0.00038356,7]
[399713158,1766631148077,-500.0,0.00038356,120]
[399713159,1766631148087,-1367.09,0.00038356,120]
[399713160,1766631148097,-1354.83,0.00038356,2]
[399713161,1766631148107,-641.85,0.00038356,10]
[399713162,1766631148117,-500.0,0.00038356,120]
[399713163,1766631148127,-505.07,0.00038356,2]
[399713164,1766631148137,-500.0,0.00038356,120]
[399713165,1766631148147,-573.17,0.00038356,120]
[399713166,1766631148157,-500.0,0.00038356,120]
[399713167,1766631148167,-500.0,0.00038356,120]
[399713168,1766631148177,-500.0,0.00038356,120]
[399713169,1766631148188,-500.0,0.00038356,120]
[399713170,1766631148198,-3742.25,0.00038356,120]
[399713171,1766631148208,-639.08,0.00038356,120]
[399713172,1766631148219,-566.13,0.00038356,120]
[399713173,1766631148229,-509.97,0.00038356,120]
[399713174,1766631148241,-225.7873918,0.00038356,120]
[399713175,1766631148255,-876.11,0.00038356,120]
[399713176,1766631148265,-500.0,0.00038356,120]
[399713177,1766631148276,-536.03,0.00038356,120]
[399713178,1766631148287,-632.57,0.00038356,120]
[399713179,1766631148297,-481.025997,0.00038356,120]
[399713180,1766631148307,-998.82,0.00038356,120]
[399713181,1766631148319,-646.63,0.00038356,120]
[399713182,1766631148329,-572.07,0.00038356,120]
[399713183,1766631148340,-642.5,0.00038356,120]
[399713184,1766631148351,-574.86,0.00038356,120]
[399713185,1766631148361,-642.68,0.00038356,120]
[399713186,1766631148371,-1734.97,0.00038356,120]
[399713187,1766631148380,-564.76,0.00038356,120]
[399713188,1766631148391,-500.0,0.00038356,120]
[399713189,1766631148402,-543.77,0.00038356,120]
[399713190,1766631148412,-609.66,0.00038356,120]
[399713191,1766631148422,-255.08192472,0.00038356,120]
[399713192,1766631148431,-657.18,0.00038356,120]
[399713193,1766631148441,-543.46,0.00038356,120]
[399713194,1766631148451,-500.0,0.00038356,120]
[399713195,1766631148461,-974.52,0.00038356,120]
[399713196,1766631148470,-597.79,0.00038356,120]
[399713197,1766631148480,-511.3,0.00038356,120]
[399713198,1766631148490,-500.0,0.00038356,120]
[399713199,1766631148500,-592.68,0.00038356,120]
[399713200,1766631148510,-3290.73,0.00038356,120]
[399713201,1766631148521,-519.26,0.00038356,30]
[399713202,1766631148531,-352.37,0.00038356,2]
[399713203,1766631148540,-421.39,0.00038356,2]
[399713204,1766631148550,-500.0,0.00038356,120]
[399713205,1766631148559,-642.25311828,0.00038356,120]
[399713206,1766631148569,-953.97,0.00038356,120]
[399713207,1766631148578,-2740.45,0.00038356,120]
[399713208,1766631148588,-524.99,0.00038356,120]
[399713209,1766631148597,-500.0,0.00038356,120]
[399713210,1766631148607,-705.78,0.00038356,14]
[399713211,1766631148617,-555.98,0.00038356,120]
[399713212,1766631148626,-737.49,0.00038356,120]
[399713213,1766631148636,-518.13,0.00038356,120]
[399713214,1766631148646,-580.51,0.00038356,120]
[399713215,1766631148655,-560.48,0.00038356,120]
[399713216,1766631148666,-727.69,0.00038356,120]
[399713217,1766631148675,-313.8063843,0.00038356,120]
[399713218,1766631148687,-536.36,0.00038356,120]
[399713219,1766631148697,-514.27,0.00038356,120]
[399713220,1766631148707,-500.0,0.00038356,120]
[399713221,1766631148717,-500.0,0.00038356,120]
[399713222,1766631148726,-14053.25,0.00038356,5]
[399713223,1766631148736,-804.57,0.00038356,2]
[399713224,1766631148746,-638.44967634,0.00038356,120]
[399713225,1766631148755,-656.28,0.00038356,120]
[399713226,1766631148766,-151.0,0.00038356,120]
[399713227,1766631148775,-151.0,0.00038356,120]
[399713228,1766631148786,-151.0,0.00038356,120]
[399713229,1766631148796,-151.0,0.00038356,120]
[399713230,1766631148807,-168.346063,0.00038356,120]
[399713231,1766631148817,-1000.0,0.00038363,7]
[399713232,1766631148827,-150.0,0.0003838,7]
[399713233,1766631148843,-1000.0,0.00038387,7]
[399713234,1766631148855,-473.0,0.00038406,2]
[399713235,1766631148866,-1000.0,0.00038417,7]
[399713236,1766631148876,-1000.0,0.00038429,7]
[399713237,1766631148887,-150.0,0.00038432,7]
[399713238,1766631148897,-300.0,0.00038439,2]
[399713239,1766631148907,-1000.0,0.00038449,7]
[399713240,1766631148917,-1000.0,0.00038462,7]
[399713241,1766631148927,-1000.0,0.0003848,7]
[399713242,1766631148939,-384.6,0.000385,14]
[399713243,1766631148949,-1000.0,0.00038511,7]
[399713244,1766631148959,-1000.0,0.00038517,7]
[399713245,1766631148969,-150.0,0.00038541,7]
[399713246,1766631148979,-1000.0,0.00038593,7]
[399713247,1766631148989,-3457.0,0.00038604,7]
[399713248,1766631148999,-150.0,0.0003861,30]
[399713249,1766631149008,-150.0,0.0003861,30]
[399713250,1766631149018,-301.51541097,0.00038625,2]
[399713251,1766631149028,-714.65,0.0003863,7]
[399713252,1766631149038,-320.38956361,0.0003863,120]
[399713253,1766631149048,-1367.09,0.0003863,120]
[399713254,1766631149058,-1354.83,0.0003863,2]
[399713255,1766631149068,-641.85,0.0003863,10]
[399713256,1766631149077,-500.0,0.0003863,120]
[399713257,1766631149087,-505.07,0.0003863,2]
[399713258,1766631149097,-500.0,0.0003863,120]
[399713259,1766631149108,-573.17,0.0003863,120]
[399713260,1766631149118,-333.00797718,0.0003863,120]
[399713261,1766631149128,-500.0,0.0003863,120]
[399713262,1766631149139,-539.39991828,0.0003863,120]
[399713263,1766631149150,-500.0,0.0003863,120]
[399713264,1766631149163,-3742.25,0.0003863,120]
[399713265,1766631149173,-639.08,0.0003863,120]
[399713266,1766631149185,-566.13,0.0003863,120]
[399713267,1766631149196,-509.97,0.0003863,120]
[399713268,1766631149206,-876.11,0.0003863,120]
[399713269,1766631149216,-500.0,0.0003863,120]
[399713270,1766631149229,-536.03,0.0003863,120]
[399713271,1766631149240,-632.57,0.0003863,120]
[399713272,1766631149255,-998.82,0.0003863,120]
[399713273,1766631149265,-646.63,0.0003863,120]
[399713274,1766631149275,-572.07,0.0003863,120]
[399713275,1766631149286,-642.5,0.0003863,120]
[399713276,1766631149296,-574.86,0.0003863,120]
[399713277,1766631149306,-642.68,0.0003863,120]
[399713278,1766631149316,-1734.97,0.0003863,120]
[399713279,1766631149326,-564.76,0.0003863,120]
[399713280,1766631149335,-546.96624435,0.0003863,120]
[399713281,1766631149346,-543.77,0.0003863,120]
[399713282,1766631149356,-609.66,0.0003863,120]
[399713283,1766631149365,-657.18,0.0003863,120]
[399713284,1766631149375,-543.46,0.0003863,120]
[399713285,1766631149385,-525.992485,0.0003863,120]
[399713286,1766631149394,-974.52,0.0003863,120]
[399713287,1766631149404,-597.79,0.0003863,120]
[399713288,1766631149415,-511.3,0.0003863,120]
[399713289,1766631149425,-283.32527411,0.0003863,120]
[399713290,1766631149436,-592.68,0.0003863,120]
[399713291,1766631149446,-519.26,0.0003863,30]
[399713292,1766631149456,-352.37,0.0003863,2]
[399713293,1766631149466,-421.39,0.0003863,2]
[399713294,1766631149476,-500.0,0.0003863,120]
[399713295,1766631149485,-953.97,0.0003863,120]
[399713296,1766631149495,-2740.45,0.0003863,120]
[399713297,1766631149505,-524.99,0.0003863,120]
[399713298,1766631149515,-321.50960832,0.0003863,120]
[399713299,1766631149525,-705.78,0.0003863,14]
[399713300,1766631149540,-555.98,0.0003863,120]
[399713301,1766631149550,-737.49,0.0003863,120]
[399713302,1766631149559,-518.13,0.0003863,120]
[399713303,1766631149569,-580.51,0.0003863,120]
[399713304,1766631149578,-560.48,0.0003863,120]
[399713305,1766631149588,-727.69,0.0003863,120]
[399713306,1766631149597,-536.36,0.0003863,120]
[399713307,1766631149607,-514.27,0.0003863,120]
[399713308,1766631149616,-500.0,0.0003863,120]
[399713309,1766631149626,-500.0,0.0003863,120]
[399713310,1766631149636,-14053.25,0.0003863,5]